[Event "86th Tata Steel Masters 2024"]
[Site "Wijk aan Zee"]
[Date "2024.01.26"]
[Round "10.7"]
[White "Nepomniachtchi, Ian"]
[Black "Ding, Liren"]
[Result "1-0"]
[ECO "C84"]
[WhiteElo "2769"]
[BlackElo "2780"]
[Annotator "GM rafael Leitão"]
[PlyCount "71"]
[EventDate "2024.??.??"]
[TimeControl "40/6000+30:3000+30"]

{[%evp 0,71,15,15,37,15,20,-2,15,2,2,-4,23,1,14,1,20,-5,2,-18,-18,-52,-15,-17,
4,-4,18,-4,77,-19,49,51,56,38,54,50,63,69,59,13,13,-49,5,-39,-25,-28,-15,-24,
18,-4,-4,-34,-4,-8,-8,-3,-3,-56,22,-22,-2,-23,15,-42,69,60,116,68,87,87,142,78,
216,216]} 1. e4 e5 2. Nf3 Nc6 3. Bb5 a6 4. Ba4 Nf6 5. O-O Be7 6. d3 {Os dois
enxadristas continuam a batalha teórica na Ruy Lopez que ocorreu em seu match
dramático pelo campeonato mundial.} b5 7. Bb3 d6 8. c3 O-O 9. a4 (9. h3 {
Nepomniachtchi fez esse lance duas vezes no match. Ele busca um novo caminho
para esta partida.}) 9... Bd7 10. Ba2 $5 {[%c_effect a2;square;a2;type;
Interesting;persistent;true] Um lance muito raro, mas já feito pelo GM Peter
Svidler, um grande especialista na Ruy Lopez com ambas as cores. A ideia é
antecipar o típico lance 10...Ca5 seguido por c7-c5, que pode ocorrer após
10.Cbd2.} (10. Nbd2 Na5 11. Bc2 c5 {com uma posição típica.}) (10. Bc2) (10.
Re1) 10... h6 11. h3 Re8 12. Be3 {Uma posição espanhola normal no lance 12,
sem nenhuma teoria específica. Isso é mais ou menos o que os jogadores de
Brancas buscam na difícil arte da preparação teórica moderna. A posição
pode ser desconhecida para mim, para você e talvez até para o campeão
mundial, mas certamente era bem conhecida por Nepomniachtchi, como veremos.} (
12. Re1 {foi jogado em Svidler-Adams, EU-Cup 2011.}) 12... Rb8 (12... Bf8 {
é natural. As Brancas podem continuar com} 13. Nbd2 {e o computador já
mostra linhas com g4-g5, uma ideia surpreendente mas muito perigosa quando o
bispo está em a2.}) 13. Nbd2 (13. axb5 {As Brancas podem considerar trocar em
b5 imediatamente.} axb5 14. Nbd2 {com ideias semelhantes.}) 13... Bf8 (13...
bxa4 $5 {[%c_effect a4;square;a4;type;Interesting;persistent;true] As Negras
agora poderiam aproveitar a oportunidade para capturar em a4.} 14. Nc4 (14.
Qxa4 {permite que as Negras joguem} Nb4 15. Qd1 Nxa2 {É um grande alívio
quando o bispo de casas claras é capturado.} (15... Nxd3 16. Qc2 {é perigoso.
}) 16. Rxa2 Bf8 {com igualdade.}) 14... Bf8 15. Bb1 Ne7 16. Bc2 Ng6 17. Bxa4 c6
{Preparando d6-d5, com boa posição.}) 14. g4 $1 {[%c_effect g4;square;g4;
type;GreatFind;persistent;true] A primeira escolha do computador e ainda
preparação de Nepomniachtchi.} Be6 {Uma ideia lógica, já que o bispo em a2
é uma peça monstruosa.} (14... Nh7 {é possível:} 15. axb5 axb5 16. Kh2 {
As Brancas preparam Th1-h4-g5 com uma posição complicada.}) 15. Bxe6 Rxe6 16.
axb5 axb5 17. g5 {As Brancas vão com tudo. Parece estranho para mim que um
ataque tão brutal possa ser bem-sucedido contra um rei protegido, mas o
computador aprova e indica igualdade. O xadrez moderno é xadrez sem
preconceitos.} hxg5 18. Nxg5 Re8 19. Kh2 {Abrindo a coluna g para a torre.} d5
{Contra um ataque pelo flanco, contra-ataque pelo centro. Este é o conselho
clássico que você encontrará nos livros, enquanto o oráculo da modernidade
não se preocupa tanto com palavras bonitas e genéricas.} (19... Qd7 {é o
lance preferido do computador, embora não seja tão didático.}) 20. Rg1 d4
21. cxd4 exd4 (21... Nxd4 {é mais preciso, seguido por c7-c5, resultando em
um jogo equilibrado. Isso foi sugerido por Nepomniachtchi em sua entrevista
pós-jogo, e ele disse que verificou tudo isso em sua preparação. Ainda
estou impressionado com o quão profunda é a análise de aberturas dos
jogadores de elite—considere o número de alternativas que as Negras tinham
ao longo do caminho após 10.Ba2.}) 22. Bf4 {O plano das Brancas é jogar Bg3
e então avançar o peão de f. A posição torna-se estrategicamente perigosa
para as Negras.} Bd6 $1 {[%c_effect d6;square;d6;type;GreatFind;persistent;
true]} 23. Bg3 (23. Bxd6 {também é possível:} Qxd6+ 24. Kh1 Qf4 25. Ndf3 Ne5
26. Rc1 {com uma pequena vantagem para as Brancas.}) 23... Bxg3+ 24. Rxg3 Qd6
25. Kg1 {É difícil dizer se é melhor o rei em g1 ou em h1.} Ra8 {
Nepomniachtchi criticou este lance. Ele sugeriu 25...Df4, o que na verdade é
um erro.} (25... Qf4 $6 {[%c_effect f4;square;f4;type;Inaccuracy;persistent;
true]} 26. Ndf3 $1 {[%c_effect f3;square;f3;type;GreatFind;persistent;true] A
posição das Negras é instável e as Brancas têm vários planos
disponíveis, mesmo jogando Ce1-g2, para expulsar a dama.}) (25... g6 {com a
ideia de jogar Ch5 em algum momento, é uma alternativa interessante.}) 26.
Rxa8 (26. Rc1 {também é lógico.} Ra6 {Protegendo o cavalo e ajudando na ala
do rei. A posição das Brancas é mais confortável, mas há muito jogo.})
26... Rxa8 27. Qb3 {Atacando f7 e b5, mas perder o último peão não é o fim
do mundo.} Qd7 (27... Nd8 {também é possível. A captura em b5 não é tão
perigosa:} 28. Qxb5 Qc6 {A troca de damas é uma boa notícia para as Negras.}
29. Qxc6 Nxc6 {com boa compensação já que a torre em g3 não está tão bem
posicionada agora que não há ataque direto.}) 28. Ndf3 (28. Qxb5 {não é
bom o suficiente:} Nh5 (28... Rb8 {também é possível.}) 29. Rg4 Nf6 30. Rg2
{Caso contrário é um empate por repetição.} Ra1+ 31. Nf1 Ra5 {com bom
contra-jogo. Ch5-f4 será desagradável de enfrentar.}) 28... Rb8 $2 {
[%c_effect b8;square;b8;type;Mistake;persistent;true] Defender o peão de b5
de forma tão passiva é uma má ideia.} (28... Nd8 {Esse lance difícil é
uma das sugestões do computador, que avalia a posição como igual.}) (28...
Re8 $5 {[%c_effect e8;square;e8;type;Interesting;persistent;true] é um lance
humano, impedindo o avanço e4-e5. Se as Brancas capturarem em b5, as Negras
poderão trocar as damas.} 29. Qxb5 (29. Nh4 {é mais interessante:} Ne5 30.
Qd1 g6 {com chances para ambos os lados.}) 29... Nh5 30. Rg4 Ne5 $1 {
[%c_effect e5;square;e5;type;GreatFind;persistent;true]} 31. Qxd7 Nxd7 {
A ameaça é f6. Acontece que as peças brancas não estão tão bem colocadas
na ala do rei. As Negras devem conseguir empatar.}) (28... Nh5 {é uma ideia
ativa:} 29. Rg4 Ra1+ 30. Kg2 Na5 $1 {[%c_effect a5;square;a5;type;GreatFind;
persistent;true] Curiosamente, a melhor opção é colocar os dois cavalos no
canto do tabuleiro. Como eu escrevi antes: o xadrez moderno é xadrez sem
preconceitos. A posição se torna muito complicada, com algumas variantes
vistosas.} 31. Qb4 (31. Qc2 Qc6 {As Negras deveriam buscar uma troca de damas
nesta posição, como já está claro.} (31... f6 {é tentador:} 32. b4 $1 {
[%c_effect b4;square;b4;type;GreatFind;persistent;true]} Qc6 {Ainda é o
melhor lance:} (32... fxg5 33. Qb2 $3 {[%c_effect b2;square;b2;type;Brilliant;
persistent;true] Um lance intermediário maravilhoso.} (33. bxa5 Nf4+ 34. Kh2
Ne6 {com contra-jogo para as Negras, por exemplo:} 35. Nxg5 Nxg5 36. Rxg5 Qf7
$1 {[%c_effect f7;square;f7;type;GreatFind;persistent;true] O rei está
inseguro em h2.}) 33... Ra4 34. bxa5 Nf4+ 35. Kh2 Ne6 36. Nxg5 Nxg5 37. Rxg5 c6
38. f4 Rxa5 39. Kg3 {com uma grande vantagem posicional para as Brancas,
graças à sua melhor estrutura de peões.}) 33. Nxd4 Qxc2 34. Nxc2 Ra2 35.
bxa5 Rxc2 36. Ne6 {As complicações persistem, mas o empate é o resultado
mais provável.}) 32. Nxd4 Qxc2 33. Nxc2 Ra2 34. e5 Rxb2 35. Nd4 {O peão de b
parece perigoso, mas as Brancas irão avançar e6 e podem criar algumas
ameaças. A posição está equilibrada.}) 31... f6 32. Ne6 $1 {[%c_effect e6;
square;e6;type;GreatFind;persistent;true]} Qxe6 33. Qxb5 Qf7 {com um caos
total no tabuleiro. As Brancas têm uma boa compensação pela peça, mas não
mais do que isso.}) 29. Qc2 $2 {[%c_effect c2;square;c2;type;Mistake;
persistent;true]} (29. Nh4 $1 {[%c_effect h4;square;h4;type;GreatFind;
persistent;true] é muito mais forte. O cavalo vai para f5 e as Brancas têm
um ataque esmagador.} Ne5 (29... Nh5 30. Rf3 Ne5 31. Rf5 {seguido por f4 ou
mesmo Cg6, com ataque decisivo.}) 30. Qd1 $1 {[%c_effect d1;square;d1;type;
GreatFind;persistent;true] Um lance importante, evitando Ch5.} (30. Nf5 $2 {
[%c_effect f5;square;f5;type;Mistake;persistent;true]} Nh5) 30... g6 31. f4 Nh5
32. fxe5 $1 {[%c_effect e5;square;e5;type;GreatFind;persistent;true]} Nxg3 33.
e6 $1 {[%c_effect e6;square;e6;type;GreatFind;persistent;true]} fxe6 34. Qf3
Nh5 35. Nxg6 Ng7 36. Qf6 {A dama e dois cavalos se combinam para um ataque
decisivo.}) 29... Rb6 $6 {[%c_effect b6;square;b6;type;Inaccuracy;persistent;
true]} (29... Re8 $1 {[%c_effect e8;square;e8;type;GreatFind;persistent;true]
A torre deve ir para a coluna e, evitando e4-e5.}) 30. e5 $1 {[%c_effect e5;
square;e5;type;GreatFind;persistent;true]} Nh5 31. Rg4 Rb8 $2 {[%c_effect b8;
square;b8;type;Mistake;persistent;true] O erro decisivo.} (31... Qd5 {é
necessário.} 32. Qc1 $1 {[%c_effect c1;square;c1;type;GreatFind;persistent;
true] Protegendo o peão de e5 indiretamente.} f6 (32... Nxe5 $2 {[%c_effect
e5;square;e5;type;Mistake;persistent;true]} 33. Nxe5 Qxe5 34. Re4 {está ganho
para as Brancas, pois o mate com Te8 está chegando.}) 33. exf6 Nxf6 {As
Brancas agora podem escolher qualquer casa para a torre e manter a iniciativa,
mas as Negras ainda estão defendendo.}) 32. Qc5 (32. Ne4 {também é bom,
preparando Tg5 e um lance de cavalo para f6 mais cedo ou mais tarde.}) 32...
Rd8 33. Ne4 (33. e6 {ganha imediatamente:} fxe6 34. Ne4 Qd5 35. Rg5 $1 {
[%c_effect g5;square;g5;type;GreatFind;persistent;true]} Qxc5 36. Rxc5 {
com um ataque duplo em c6 e h5.}) 33... Qe6 (33... Qd5 {foi sugerido como uma
melhoria por Nepomniachtchi. Ele mencionou a seguinte linha:} 34. Qxd5 Rxd5 35.
Rg5 $1 {[%c_effect g5;square;g5;type;GreatFind;persistent;true]} Nf4 (35... g6
36. Rxh5 gxh5 37. Nf6+ {ganha uma peça.}) 36. Nf6+ Kf8 37. Nxd5 Nxh3+ 38. Kf1
Nxg5 39. Nxg5 Nxe5 40. Ke2 {e Brancas deveriam vencer gradualmente o final. O
peão de d4 é uma fraqueza e Negras em breve ficarão com uma peça a menos
por apenas um peão.}) 34. Rh4 $1 {[%c_effect h4;square;h4;type;GreatFind;
persistent;true]} Rd5 (34... g6 35. Rxh5 $1 {[%c_effect h5;square;h5;type;
GreatFind;persistent;true] Essa é a ideia temática para vencer a partida nas
mais diversas variantes.} gxh5 36. Nfg5 Qxe5 37. Qxc6 {com vantagem material e
ataque decisivo.}) 35. Qa3 $1 {[%c_effect a3;square;a3;type;GreatFind;
persistent;true] A dama agora pode ir para a8.} g6 (35... Nxe5 36. Qa8+ {ganha.
}) 36. Nfg5 (36. Rxh5 {também ganha:} gxh5 37. Nf6+ Kg7 38. Nxh5+ Kg8 39. Nf4
$1 {[%c_effect f4;square;f4;type;GreatFind;persistent;true]} Qd7 40. Qa8+ Kg7 (
40... Kh7 41. Ng5+ {com mate em breve.}) 41. Nh5+ {com um ataque de mate.}) (
36. Nfg5 {A variante a seguir ilustra por que as Negras abandonaram:} Qxe5 37.
Qa8+ Nd8 38. Rxh5 $1 {[%c_effect h5;square;h5;type;GreatFind;persistent;true]}
gxh5 39. Qxd5 $1 {[%c_effect d5;square;d5;type;GreatFind;persistent;true]} Qxd5
40. Nf6+ {ganhando uma peça. Precisão Chess.Com: Brancas 95.0% Pretas 89.8%})
1-0